{"text_format":"1","workbook":"xlsx","n_sheets":1,"sheets":["اساتدة القسم الواحد"],"not_rendered":{"charts":0,"images":0,"macros":1,"external_links":0,"defined_names":0,"comments":0,"pivot_tables":0},"unopened":[],"bounds":{"document_bytes":16777216,"sheet_cells":100000,"rows_first":2000,"rows_last":500,"rows_between":2000,"halvings":0,"cell_chars":16384,"cell_head_chars":4096},"cells_cut":0,"cells_raw":0,"read":"whole","date_system":"1900"}

{"sheet":"اساتدة القسم الواحد","index":0,"n_rows":140,"n_cols":22,"rows_kept":140,"cut":false,"hidden":false,"merged":[[1,0,1,12],[3,3,3,12]]}
[]
["إسناد الأقسام للأساتذة ",null,null,null,null,null,null,null,null,null,null,null,null,null,null,null,null,"المواد","رياضيات","ع طبيعية","ع فيزيائية","ادب عربي"]
[]
["الرقم","أستاذ المادة","المادة","الأقســـــــــام",null,null,null,null,null,null,null,null,null,"الحجم الساعي"]
[1,"احمد1","رياضيات","3ريا","2هك","2تق","2آف2","2ريا","3هك","3تق1",null,null,null,null,null,null,null,null,1,2,3,4]
[2,"احمد2","رياضيات","3ع ت1","3ع ت2","2لغ","2همد","2آف1","3ع ت3","3تق2",null,null,null,null,null,null,"الرقم","القســـــــــم","رياضيات","ع طبيعية","ع فيزيائية","ادب عربي"]
[3,"احمد3","رياضيات","ج م آ1","ج م آ2","ج م آ3","2ع ت1","2ع ت2","2ع ت3",null,null,null,null,null,null,null,1,"3هك",{"$f":"IF(OR(ISERROR(MATCH(S$6,$C:$C,0)),SUMPRODUCT(($D$1:$M$963=$R7)*($C$1:$C$963=S$6)*ROW($1:$963))=0),\"\",INDEX($B$1:$B$963,SUMPRODUCT(($D$1:$M$963=$R7)*($C$1:$C$963=S$6)*ROW($1:$963))))","v":"احمد1"},"","","احمد14"]
[4,"احمد4","رياضيات","ج م ع1","ج م ع2","ج م ع3","ج م ع4","ج م ع5","ج م ع6","ج م ع7",null,null,null,null,null,null,2,"3تق1","احمد1","","","احمد14"]
[5,"احمد5","ع طبيعية","3ع ت3",null,null,null,null,null,null,null,null,null,null,null,null,3,"3تق2","احمد2","","","احمد14"]
[6,"احمد6","ع طبيعية","ج م ع1","ج م ع2","ج م ع3","ج م ع4","ج م ع5","ج م ع6","ج م ع7",null,null,null,null,null,null,4,"3ريا","احمد1","","",""]
[7,"احمد7","ع طبيعية","2ع ت1","2ع ت2","2ع ت3",null,null,null,null,null,null,null,null,null,null,5,"3ع ت1","احمد2","","","احمد14"]
[8,"احمد8","ع فيزيائية","ج م آ1","ج م آ2","ج م آ3",null,null,null,null,null,null,null,null,null,null,6,"3ع ت2","احمد2","","","احمد14"]
[9,"احمد9","ع فيزيائية","ج م ع1","ج م ع2","ج م ع3","ج م ع4","ج م ع5","ج م ع6","ج م ع7",null,null,null,null,null,null,7,"3ع ت3","احمد2","احمد5","","احمد14"]
[10,"احمد10","ع فيزيائية",null,null,null,null,null,null,null,null,null,null,null,null,null,8,"3آف1","","","",""]
[11,"احمد11","ادب عربي","ج م آ1","ج م آ2","ج م آ3",null,null,null,null,null,null,null,null,null,null,9,"3آف2","","","",""]
[12,"احمد12","ادب عربي","ج م ع1","ج م ع2","ج م ع3","ج م ع4","ج م ع5","ج م ع6","ج م ع7",null,null,null,null,null,null,10,"3آف3","","","",""]
[13,"احمد13","ادب عربي","2ع ت1","2ع ت2","2ع ت3",null,null,null,null,null,null,null,null,null,null,11,"3لغ","","","",""]
[14,"احمد14","ادب عربي","3تق1","3تق2","3هك","3ع ت1","3ع ت2","3ع ت3",null,null,null,null,null,null,null,12,"2هك","احمد1","","",""]
[15,null,null,null,null,null,null,null,null,null,null,null,null,null,null,null,13,"2همد","احمد2","","",""]
[16,null,null,null,null,null,null,null,null,null,null,null,null,null,null,null,14,"2تق","احمد1","","",""]
[17,null,null,null,null,null,null,null,null,null,null,null,null,null,null,null,15,"2ريا","احمد1","","",""]
[18,null,null,null,null,null,null,null,null,null,null,null,null,null,null,null,16,"2ع ت1","احمد3","احمد7","","احمد13"]
[19,null,null,null,null,null,null,null,null,null,null,null,null,null,null,null,17,"2ع ت2","احمد3","احمد7","","احمد13"]
[20,null,null,null,null,null,null,null,null,null,null,null,null,null,null,null,18,"2ع ت3","احمد3","احمد7","","احمد13"]
[21,null,null,null,null,null,null,null,null,null,null,null,null,null,null,null,19,"2آف1","احمد2","","",""]
[22,null,null,null,null,null,null,null,null,null,null,null,null,null,null,null,20,"2آف2","احمد1","","",""]
[23,null,null,null,null,null,null,null,null,null,null,null,null,null,null,null,21,"2لغ",{"$f":"IF(OR(ISERROR(MATCH(S$6,$C:$C,0)),SUMPRODUCT(($D$1:$M$963=$R27)*($C$1:$C$963=S$6)*ROW($1:$963))=0),\"\",INDEX($B$1:$B$963,SUMPRODUCT(($D$1:$M$963=$R27)*($C$1:$C$963=S$6)*ROW($1:$963))))","v":"احمد2"},"","",""]
[24,null,null,null,null,null,null,null,null,null,null,null,null,null,null,null,22,"ج م ع1","احمد4","احمد6","احمد9","احمد12"]
[25,null,null,null,null,null,null,null,null,null,null,null,null,null,null,null,23,"ج م ع2","احمد4","احمد6","احمد9","احمد12"]
[26,null,null,null,null,null,null,null,null,null,null,null,null,null,null,null,24,"ج م ع3","احمد4","احمد6","احمد9","احمد12"]
[27,null,null,null,null,null,null,null,null,null,null,null,null,null,null,null,25,"ج م ع4","احمد4","احمد6","احمد9","احمد12"]
[28,null,null,null,null,null,null,null,null,null,null,null,null,null,null,null,26,"ج م ع5","احمد4","احمد6","احمد9","احمد12"]
[29,null,null,null,null,null,null,null,null,null,null,null,null,null,null,null,27,"ج م ع6","احمد4","احمد6","احمد9","احمد12"]
[30,null,null,null,null,null,null,null,null,null,null,null,null,null,null,null,28,"ج م ع7","احمد4","احمد6","احمد9","احمد12"]
[31,null,null,null,null,null,null,null,null,null,null,null,null,null,null,null,29,"ج م آ1","احمد3","","احمد8","احمد11"]
[32,null,null,null,null,null,null,null,null,null,null,null,null,null,null,null,30,"ج م آ2","احمد3","","احمد8","احمد11"]
[33,null,null,null,null,null,null,null,null,null,null,null,null,null,null,null,31,"ج م آ3","احمد3","","احمد8","احمد11"]
[34,null,null,null,null,null,null,null,null,null,null,null,null,null,null,null,32,null,0,0,0,0]
[35,null,null,null,null,null,null,null,null,null,null,null,null,null,null,null,33,null,0,0,0,0]
[36,null,null,null,null,null,null,null,null,null,null,null,null,null,null,null,34,null,0,0,0,0]
[37,null,null,null,null,null,null,null,null,null,null,null,null,null,null,null,35,null,0,0,0,0]
[38]
[39]
[40]
[41]
[42]
[43]
[44]
[45]
[46]
[47]
[48]
[49]
[50]
[51]
[52]
[53]
[54]
[55]
[56]
[57]
[58]
[59]
[60]
[61]
[62]
[63]
[64]
[65]
[66]
[67]
[68]
[69]
[70]
[71]
[72]
[73]
[74]
[75]
[76]
[77]
[78]
[79]
[80]
[81]
[82]
[83]
[84]
[85]
[86]
[87]
[88]
[89]
[90]
[91]
[92]
[93]
[94]
[95]
[96]
[97]
[98]
[99]
[100]
[101]
[102]
[103]
[104]
[105]
[106]
[107]
[108]
[109]
[110]
[111]
[112]
[113]
[114]
[115]
[116]
[117]
[118]
[119]
[120]
[121]
[122]
[123]
[124]
[125]
[126]
[127]
[128]
[129]
[130]
[131]
[132]
[133]
[134]
[135]
[136]